[Event "*** Titled Tuesday Blitz"]
[Site "Chess.com"]
[Date "2021.02.16"]
[Round "10"]
[White "vovachesss"]
[Black "HackingKid98"]
[Result "0-1"]
[WhiteElo "2631"]
[BlackElo "2490"]
[TimeControl "180+1"]
[EndTime "11:59:15 PST"]
[Termination "HackingKid98 won by resignation"]

1. e4 {[%clk 0:03:00.9]} 1... c6 {[%clk 0:02:58.9]} 2. d4 {[%clk 0:02:56.4]}
2... d5 {[%clk 0:02:59.8]} 3. e5 {[%clk 0:02:56.5]} 3... Bf5 {[%clk 0:02:58.6]}
4. h4 {[%clk 0:02:56.7]} 4... h5 {[%clk 0:02:57.1]} 5. Bd3 {[%clk 0:02:57.2]}
5... Bxd3 {[%clk 0:02:56.4]} 6. Qxd3 {[%clk 0:02:58.1]} 6... e6 {[%clk
0:02:56.2]} 7. Bg5 {[%clk 0:02:58.6]} 7... Qa5+ {[%clk 0:02:55.9]} 8. Nd2 {[%clk
0:02:58.4]} 8... Qa6 {[%clk 0:02:56.3]} 9. c4 {[%clk 0:02:59.1]} 9... dxc4
{[%clk 0:02:53.1]} 10. Nxc4 {[%clk 0:02:58.1]} 10... Bb4+ {[%clk 0:02:52.7]} 11.
Ke2 {[%clk 0:02:53.3]} 11... Ne7 {[%clk 0:02:48]} 12. a3 {[%clk 0:02:48.5]}
12... Nf5 {[%clk 0:02:38.9]} 13. Nf3 {[%clk 0:02:28.2]} 13... Be7 {[%clk
0:02:37]} 14. Bxe7 {[%clk 0:02:27.8]} 14... Kxe7 {[%clk 0:02:37.9]} 15. a4
{[%clk 0:02:17.8]} 15... Nd7 {[%clk 0:02:31.5]} 16. b4 {[%clk 0:01:49.8]} 16...
Nb6 {[%clk 0:02:25.7]} 17. Nfd2 {[%clk 0:01:29]} 17... Rhd8 {[%clk 0:02:21.3]}
18. b5 {[%clk 0:01:05.3]} 18... cxb5 {[%clk 0:02:18.4]} 19. axb5 {[%clk
0:00:27.8]} 19... Qxb5 {[%clk 0:02:19.3]} 20. Rhb1 {[%clk 0:00:27.8]} 20... Qd5
{[%clk 0:02:10]} 21. Qa3+ {[%clk 0:00:12]} 21... Ke8 {[%clk 0:02:04]} 22. Nxb6
{[%clk 0:00:12.9]} 22... Qxg2 {[%clk 0:01:17.6]} 23. Nf3 {[%clk 0:00:08.4]}
23... axb6 {[%clk 0:01:04.3]} 24. Qxa8 {[%clk 0:00:08.2]} 24... Rxa8 {[%clk
0:00:27.4]} 25. Rxa8+ {[%clk 0:00:07.8]} 25... Kd7 {[%clk 0:00:27.7]} 26. Ra3
{[%clk 0:00:07.2]} 26... Nxd4+ {[%clk 0:00:22.6]} 27. Nxd4 {[%clk 0:00:03]}
27... Qe4+ {[%clk 0:00:23.5]} 28. Kd2 {[%clk 0:00:02.2]} 28... Qxb1 {[%clk
0:00:22.3]} 29. Rd3 {[%clk 0:00:03.1]} 29... Ke7 {[%clk 0:00:20.8]} 30. Ke3
{[%clk 0:00:02.5]} 30... Qe1+ {[%clk 0:00:20.1]} 31. Kf3 {[%clk 0:00:02.9]}
31... Qxe5 {[%clk 0:00:19.1]} 32. Rd2 {[%clk 0:00:01.1]} 32... b5 {[%clk
0:00:19]} 33. Ne2 {[%clk 0:00:01.3]} 33... b4 {[%clk 0:00:18.4]} 34. Nd4 {[%clk
0:00:01.6]} 34... b3 {[%clk 0:00:17.3]} 35. Nxb3 {[%clk 0:00:01.8]} 35... Qc3+
{[%clk 0:00:16.6]} 36. Rd3 {[%clk 0:00:01.6]} 36... Qxd3+ {[%clk 0:00:16.6]} 0-1

[Event "*** Titled Tuesday Blitz"]
[Site "Chess.com"]
[Date "2021.02.16"]
[Round "10"]
[White "SanchezKelvin"]
[Black "esteban062000"]
[Result "1-0"]
[WhiteElo "2401"]
[BlackElo "2183"]
[TimeControl "180+1"]
[EndTime "11:59:15 PST"]
[Termination "SanchezKelvin won by resignation"]

1. d4 {[%clk 0:03:00.9]} 1... Nf6 {[%clk 0:02:58.8]} 2. c4 {[%clk 0:02:56.2]}
2... e6 {[%clk 0:02:59.2]} 3. Nf3 {[%clk 0:02:55.9]} 3... Bb4+ {[%clk
0:02:59.2]} 4. Nbd2 {[%clk 0:02:55.6]} 4... b6 {[%clk 0:02:54]} 5. g3 {[%clk
0:02:55.1]} 5... Bb7 {[%clk 0:02:54.1]} 6. Bg2 {[%clk 0:02:55.1]} 6... O-O
{[%clk 0:02:53]} 7. O-O {[%clk 0:02:55.3]} 7... Bxd2 {[%clk 0:02:50.2]} 8. Bxd2
{[%clk 0:02:54.3]} 8... d6 {[%clk 0:02:50.6]} 9. b4 {[%clk 0:02:52.3]} 9... Nbd7
{[%clk 0:02:50.5]} 10. c5 {[%clk 0:02:50.6]} 10... dxc5 {[%clk 0:02:45.4]} 11.
dxc5 {[%clk 0:02:49.1]} 11... bxc5 {[%clk 0:02:42.9]} 12. bxc5 {[%clk
0:02:48.1]} 12... Nxc5 {[%clk 0:02:39.5]} 13. Bb4 {[%clk 0:02:47.5]} 13... Nce4
{[%clk 0:02:01.9]} 14. Bxf8 {[%clk 0:02:31.6]} 14... Qxf8 {[%clk 0:02:02.8]} 15.
Qc2 {[%clk 0:02:28.9]} 15... c5 {[%clk 0:01:53.7]} 16. Ng5 {[%clk 0:02:12.7]}
16... Nd6 {[%clk 0:01:32]} 17. Qxc5 {[%clk 0:01:56.8]} 17... Bxg2 {[%clk
0:01:23.6]} 18. Kxg2 {[%clk 0:01:53.5]} 18... h6 {[%clk 0:01:20]} 19. Nf3 {[%clk
0:01:42.7]} 19... Nfe4 {[%clk 0:01:19.7]} 20. Qa3 {[%clk 0:01:40.6]} 20... Qd8
{[%clk 0:01:03]} 21. Rab1 {[%clk 0:01:31.5]} 21... Nc4 {[%clk 0:00:49.2]} 22.
Qd3 {[%clk 0:01:25]} 22... Ned2 {[%clk 0:00:31.1]} 23. Qxd8+ {[%clk 0:01:14.3]}
23... Rxd8 {[%clk 0:00:32]} 24. Nxd2 {[%clk 0:01:10.1]} 24... Rxd2 {[%clk
0:00:29.9]} 25. Rfc1 {[%clk 0:00:55.9]} 25... Nb6 {[%clk 0:00:23.6]} 26. a3
{[%clk 0:00:45.9]} 26... Rxe2 {[%clk 0:00:23.6]} 27. Rc7 {[%clk 0:00:42.9]}
27... Nd5 {[%clk 0:00:20]} 28. Rb8+ {[%clk 0:00:37.6]} 28... Kh7 {[%clk
0:00:19.7]} 29. Rxf7 {[%clk 0:00:36.4]} 29... Kg6 {[%clk 0:00:18.8]} 30. Rxa7
{[%clk 0:00:35.6]} 30... e5 {[%clk 0:00:15.4]} 31. Rd7 {[%clk 0:00:28.1]} 31...
Nf6 {[%clk 0:00:15.3]} 32. Re7 {[%clk 0:00:22.5]} 32... e4 {[%clk 0:00:12.1]}
33. Rbb7 {[%clk 0:00:22]} 33... Nh5 {[%clk 0:00:12.4]} 34. g4 {[%clk 0:00:20.5]}
34... Nf4+ {[%clk 0:00:12]} 35. Kg3 {[%clk 0:00:21]} 35... Nd5 {[%clk
0:00:10.5]} 36. Rxg7+ {[%clk 0:00:20.6]} 36... Kf6 {[%clk 0:00:10.6]} 37. Rbf7+
{[%clk 0:00:20.5]} 37... Ke6 {[%clk 0:00:11.1]} 38. Ra7 {[%clk 0:00:19.4]} 38...
Ra2 {[%clk 0:00:08.2]} 39. Ra6+ {[%clk 0:00:18.4]} 39... Ke5 {[%clk 0:00:08.8]}
40. Ra5 {[%clk 0:00:16.2]} 40... Kd4 {[%clk 0:00:08]} 41. Rd7 {[%clk 0:00:16]}
1-0

[Event "*** Titled Tuesday Blitz"]
[Site "Chess.com"]
[Date "2021.02.16"]
[Round "10"]
[White "Nikolakis2014"]
[Black "ViditYT"]
[Result "0-1"]
[WhiteElo "2650"]
[BlackElo "2989"]
[TimeControl "180+1"]
[EndTime "11:59:16 PST"]
[Termination "ViditYT won by resignation"]

1. Nf3 {[%clk 0:03:00.9]} 1... c5 {[%clk 0:02:59.3]} 2. c4 {[%clk 0:03:00.9]}
2... Nc6 {[%clk 0:02:59.1]} 3. Nc3 {[%clk 0:03:01.1]} 3... g6 {[%clk 0:02:52.5]}
4. e3 {[%clk 0:03:01]} 4... Bg7 {[%clk 0:02:52.6]} 5. d4 {[%clk 0:03:00.9]} 5...
d6 {[%clk 0:02:53.2]} 6. d5 {[%clk 0:02:59.5]} 6... Ne5 {[%clk 0:02:53.3]} 7.
Nxe5 {[%clk 0:02:59.6]} 7... Bxe5 {[%clk 0:02:54.2]} 8. Bd3 {[%clk 0:02:59.7]}
8... Bg7 {[%clk 0:02:52]} 9. O-O {[%clk 0:02:59.8]} 9... Nf6 {[%clk 0:02:51.3]}
10. e4 {[%clk 0:03:00]} 10... O-O {[%clk 0:02:51.5]} 11. h3 {[%clk 0:03:00.2]}
11... e5 {[%clk 0:02:37]} 12. dxe6 {[%clk 0:02:56.1]} 12... Bxe6 {[%clk
0:02:33.6]} 13. Bf4 {[%clk 0:02:52.7]} 13... Qb6 {[%clk 0:02:24.8]} 14. Rb1
{[%clk 0:02:39.2]} 14... Nd7 {[%clk 0:02:18.9]} 15. Qc2 {[%clk 0:02:33.6]} 15...
Ne5 {[%clk 0:02:17.7]} 16. Be2 {[%clk 0:02:22.3]} 16... Rad8 {[%clk 0:01:58.7]}
17. Rfd1 {[%clk 0:01:58.7]} 17... Rfe8 {[%clk 0:01:53.3]} 18. Bf1 {[%clk
0:01:53.1]} 18... Nc6 {[%clk 0:01:50.2]} 19. Bg5 {[%clk 0:01:38.3]} 19... Rd7
{[%clk 0:01:48.9]} 20. Nd5 {[%clk 0:01:28.5]} 20... Bxd5 {[%clk 0:01:43.6]} 21.
Rxd5 {[%clk 0:01:24.6]} 21... h6 {[%clk 0:01:34.3]} 22. Bf4 {[%clk 0:01:23]}
22... Nb4 {[%clk 0:01:28.6]} 23. Qa4 {[%clk 0:01:21.5]} 23... Nxd5 {[%clk
0:01:25.6]} 24. Qxd7 {[%clk 0:01:00.4]} 24... Rd8 {[%clk 0:01:23.3]} 25. Qg4
{[%clk 0:01:00.6]} 25... Nc3 {[%clk 0:01:11.9]} 26. Re1 {[%clk 0:00:55.6]} 26...
Qxb2 {[%clk 0:01:11.7]} 27. h4 {[%clk 0:00:47.6]} 27... h5 {[%clk 0:00:36.1]}
28. Qf3 {[%clk 0:00:40.7]} 28... Nxa2 {[%clk 0:00:29.2]} 29. Bg5 {[%clk
0:00:34.6]} 29... Re8 {[%clk 0:00:28.6]} 30. Rd1 {[%clk 0:00:29.5]} 30... Be5
{[%clk 0:00:26.5]} 31. Rd2 {[%clk 0:00:27]} 31... Qa1 {[%clk 0:00:25]} 32. Bf4
{[%clk 0:00:19.6]} 32... Nb4 {[%clk 0:00:24.2]} 33. Rxd6 {[%clk 0:00:14.8]}
33... Bxd6 {[%clk 0:00:22.8]} 34. Bxd6 {[%clk 0:00:15.1]} 34... Qd4 {[%clk
0:00:22.4]} 35. e5 {[%clk 0:00:15]} 35... Nc6 {[%clk 0:00:21.6]} 36. Qf6 {[%clk
0:00:14.5]} 36... Nxe5 {[%clk 0:00:20.7]} 37. Be7 {[%clk 0:00:07.7]} 37... Ng4
{[%clk 0:00:18.9]} 38. Qg5 {[%clk 0:00:06.7]} 38... Qxf2+ {[%clk 0:00:18.4]} 0-1

[Event "*** Titled Tuesday Blitz"]
[Site "Chess.com"]
[Date "2021.02.16"]
[Round "10"]
[White "German_Bazeev"]
[Black "Sergey85Rodchenkov"]
[Result "1-0"]
[WhiteElo "2743"]
[BlackElo "2514"]
[TimeControl "180+1"]
[EndTime "11:59:17 PST"]
[Termination "German_Bazeev won by resignation"]

1. d4 {[%clk 0:03:00.9]} 1... Nf6 {[%clk 0:02:58.4]} 2. Nf3 {[%clk 0:02:59.7]}
2... b6 {[%clk 0:02:58]} 3. c4 {[%clk 0:02:59.2]} 3... Bb7 {[%clk 0:02:58]} 4.
Nc3 {[%clk 0:03:00]} 4... e6 {[%clk 0:02:56.8]} 5. Bg5 {[%clk 0:02:59.2]} 5...
Bb4 {[%clk 0:02:56.1]} 6. Nd2 {[%clk 0:02:59]} 6... h6 {[%clk 0:02:51.5]} 7. Bh4
{[%clk 0:02:58.6]} 7... g5 {[%clk 0:02:51.3]} 8. Bg3 {[%clk 0:02:58.2]} 8...
Bxc3 {[%clk 0:02:51.6]} 9. bxc3 {[%clk 0:02:59]} 9... d6 {[%clk 0:02:52.2]} 10.
f3 {[%clk 0:02:58.6]} 10... Nbd7 {[%clk 0:02:51.8]} 11. e4 {[%clk 0:02:59.1]}
11... e5 {[%clk 0:02:52.1]} 12. Be2 {[%clk 0:02:59.5]} 12... h5 {[%clk
0:02:51.5]} 13. Nf1 {[%clk 0:02:59.1]} 13... h4 {[%clk 0:02:51.1]} 14. Bf2
{[%clk 0:02:59.8]} 14... Qe7 {[%clk 0:02:50.9]} 15. Ne3 {[%clk 0:02:59.8]} 15...
Nf8 {[%clk 0:02:48.2]} 16. Nf5 {[%clk 0:02:48.7]} 16... Qd8 {[%clk 0:02:47.7]}
17. c5 {[%clk 0:02:46.4]} 17... Bc8 {[%clk 0:02:42]} 18. cxd6 {[%clk 0:02:03.2]}
18... Bxf5 {[%clk 0:02:38.8]} 19. dxe5 {[%clk 0:02:01.7]} 19... cxd6 {[%clk
0:02:28.5]} 20. exf6 {[%clk 0:01:59.8]} 20... Be6 {[%clk 0:02:19.8]} 21. Qa4+
{[%clk 0:01:56.3]} 21... Nd7 {[%clk 0:02:19.6]} 22. Bd4 {[%clk 0:01:52.4]} 22...
Kf8 {[%clk 0:02:12.6]} 23. Rd1 {[%clk 0:01:47.1]} 23... Rh6 {[%clk 0:02:10.2]}
24. Qc6 {[%clk 0:01:45]} 24... Nxf6 {[%clk 0:02:00.1]} 25. Be3 {[%clk 0:01:32]}
25... Ne8 {[%clk 0:01:56.2]} 26. O-O {[%clk 0:01:28.4]} 26... Rc8 {[%clk
0:01:55.4]} 27. Qa4 {[%clk 0:01:27.7]} 27... Rg6 {[%clk 0:01:53.3]} 28. Qxa7
{[%clk 0:01:25.8]} 28... Rxc3 {[%clk 0:01:48.4]} 29. Bxb6 {[%clk 0:01:16.9]}
29... Qc8 {[%clk 0:01:45.9]} 30. Be3 {[%clk 0:00:53.1]} 30... Rc2 {[%clk
0:01:36.8]} 31. Rc1 {[%clk 0:00:52.9]} 31... g4 {[%clk 0:01:34.8]} 32. Qa4
{[%clk 0:00:47.6]} 32... gxf3 {[%clk 0:01:17.1]} 33. Rxc2 {[%clk 0:00:38.5]}
33... Rxg2+ {[%clk 0:01:16.5]} 34. Kh1 {[%clk 0:00:38.7]} 34... fxe2 {[%clk
0:01:16.7]} 35. Re1 {[%clk 0:00:27.4]} 35... Qd8 {[%clk 0:00:16.5]} 36. Kxg2
{[%clk 0:00:25.7]} 36... h3+ {[%clk 0:00:15]} 37. Kf2 {[%clk 0:00:24.6]} 37...
Qf6+ {[%clk 0:00:14.1]} 38. Kxe2 {[%clk 0:00:23.9]} 38... Bg4+ {[%clk 0:00:14]}
39. Kd2 {[%clk 0:00:24.3]} 39... Qf3 {[%clk 0:00:11.3]} 40. Qd4 {[%clk
0:00:22.3]} 40... Qg2+ {[%clk 0:00:10.1]} 41. Kc1 {[%clk 0:00:22.5]} 41... Qf3
{[%clk 0:00:09.1]} 42. a4 {[%clk 0:00:21.9]} 1-0

[Event "*** Titled Tuesday Blitz"]
[Site "Chess.com"]
[Date "2021.02.16"]
[Round "10"]
[White "c_r_e_e_p_e_r"]
[Black "GelmanAlexander"]
[Result "1-0"]
[WhiteElo "2391"]
[BlackElo "2563"]
[TimeControl "180+1"]
[EndTime "11:59:19 PST"]
[Termination "c_r_e_e_p_e_r won by resignation"]

1. e4 {[%clk 0:03:00.9]} 1... c5 {[%clk 0:03:00.2]} 2. Nf3 {[%clk 0:03:01.3]}
2... e6 {[%clk 0:03:00.6]} 3. d4 {[%clk 0:03:01.4]} 3... cxd4 {[%clk 0:03:01.1]}
4. Nxd4 {[%clk 0:03:02.3]} 4... a6 {[%clk 0:03:01.6]} 5. Nc3 {[%clk 0:03:01.7]}
5... d6 {[%clk 0:03:01.9]} 6. Bd3 {[%clk 0:03:01.9]} 6... Nf6 {[%clk 0:03:02.3]}
7. O-O {[%clk 0:03:02.3]} 7... Nbd7 {[%clk 0:03:02.8]} 8. Qe2 {[%clk 0:03:02.4]}
8... b5 {[%clk 0:03:03]} 9. f4 {[%clk 0:03:02.4]} 9... Bb7 {[%clk 0:03:02.9]}
10. Kh1 {[%clk 0:03:00.1]} 10... b4 {[%clk 0:02:58.4]} 11. Nd1 {[%clk
0:02:58.5]} 11... h5 {[%clk 0:02:54.7]} 12. e5 {[%clk 0:02:40.4]} 12... dxe5
{[%clk 0:02:28.6]} 13. fxe5 {[%clk 0:02:41.3]} 13... Nc5 {[%clk 0:02:26.1]} 14.
Nxe6 {[%clk 0:02:10.1]} 14... Nxe6 {[%clk 0:02:10.8]} 15. exf6 {[%clk
0:02:10.3]} 15... h4 {[%clk 0:02:04]} 16. Bg6 {[%clk 0:01:52.7]} 16... Qd5
{[%clk 0:00:45.1]} 17. fxg7 {[%clk 0:01:46.7]} 17... h3 {[%clk 0:00:33]} 18.
Bxf7+ {[%clk 0:01:12.1]} 18... Kd8 {[%clk 0:00:33]} 19. gxh8=Q {[%clk
0:00:16.4]} 19... hxg2+ {[%clk 0:00:32.7]} 20. Kg1 {[%clk 0:00:16.8]} 20...
gxf1=Q+ {[%clk 0:00:32.2]} 21. Qxf1 {[%clk 0:00:11.7]} 21... Kc7 {[%clk
0:00:21.7]} 22. Bf4+ {[%clk 0:00:10.8]} 22... Nxf4 {[%clk 0:00:18.3]} 23. Bxd5
{[%clk 0:00:06.2]} 23... Bc5+ {[%clk 0:00:18.1]} 24. Nf2 {[%clk 0:00:04.9]}
24... Rxh8 {[%clk 0:00:17.3]} 25. Qc4 {[%clk 0:00:02.9]} 25... Nh3+ {[%clk
0:00:11.7]} 26. Kf1 {[%clk 0:00:02.7]} 26... Kd6 {[%clk 0:00:10.5]} 27. Bxb7
{[%clk 0:00:02.6]} 27... Bxf2 {[%clk 0:00:10.3]} 28. Qd3+ {[%clk 0:00:02.6]}
28... Ke6 {[%clk 0:00:10.5]} 29. Bd5+ {[%clk 0:00:02.4]} 29... Ke5 {[%clk
0:00:10.7]} 30. Qe4+ {[%clk 0:00:02.4]} 30... Kd6 {[%clk 0:00:11]} 31. Qe6+
{[%clk 0:00:02.6]} 31... Kc5 {[%clk 0:00:11.5]} 32. Qc6+ {[%clk 0:00:03.2]}
32... Kd4 {[%clk 0:00:12.1]} 33. Qc4+ {[%clk 0:00:03.8]} 33... Ke3 {[%clk
0:00:12.6]} 34. Bg2 {[%clk 0:00:04.1]} 34... Nf4 {[%clk 0:00:11.4]} 35. Qe4+
{[%clk 0:00:04.7]} 35... Kd2 {[%clk 0:00:11.2]} 36. Qxf4+ {[%clk 0:00:05]} 36...
Be3 {[%clk 0:00:11.9]} 37. Qd6+ {[%clk 0:00:04.8]} 37... Kxc2 {[%clk 0:00:11.3]}
38. Be4+ {[%clk 0:00:05.3]} 38... Kxb2 {[%clk 0:00:11.3]} 39. Qe5+ {[%clk
0:00:05.7]} 39... Ka3 {[%clk 0:00:10.5]} 40. Qxh8 {[%clk 0:00:06.3]} 1-0

[Event "*** Titled Tuesday Blitz"]
[Site "Chess.com"]
[Date "2021.02.16"]
[Round "10"]
[White "TST2014"]
[Black "queen_iryna"]
[Result "0-1"]
[WhiteElo "2543"]
[BlackElo "2384"]
[TimeControl "180+1"]
[EndTime "11:59:21 PST"]
[Termination "queen_iryna won on time"]

1. d4 {[%clk 0:03:00.9]} 1... d6 {[%clk 0:02:59.8]} 2. Nf3 {[%clk 0:02:58.8]}
2... g6 {[%clk 0:02:58.9]} 3. e4 {[%clk 0:02:56.3]} 3... Nf6 {[%clk 0:02:58.5]}
4. Bd3 {[%clk 0:02:54.7]} 4... Bg7 {[%clk 0:02:57.7]} 5. O-O {[%clk 0:02:52.9]}
5... O-O {[%clk 0:02:57.6]} 6. c3 {[%clk 0:02:53.4]} 6... Nc6 {[%clk 0:02:56.2]}
7. Bg5 {[%clk 0:02:50.2]} 7... h6 {[%clk 0:02:52.8]} 8. Bh4 {[%clk 0:02:45.1]}
8... e5 {[%clk 0:02:52.8]} 9. d5 {[%clk 0:02:42]} 9... Ne7 {[%clk 0:02:52.5]}
10. c4 {[%clk 0:02:39.5]} 10... Ne8 {[%clk 0:02:46.6]} 11. Nc3 {[%clk 0:02:37]}
11... f5 {[%clk 0:02:42.4]} 12. exf5 {[%clk 0:02:29]} 12... gxf5 {[%clk
0:02:43.3]} 13. Nd2 {[%clk 0:02:19.5]} 13... Nf6 {[%clk 0:02:28.1]} 14. f3
{[%clk 0:02:17.4]} 14... c6 {[%clk 0:02:05.2]} 15. dxc6 {[%clk 0:02:12.2]} 15...
bxc6 {[%clk 0:02:02.6]} 16. Nb3 {[%clk 0:02:04.8]} 16... Be6 {[%clk 0:01:51.5]}
17. Qe2 {[%clk 0:02:00.2]} 17... Ng6 {[%clk 0:01:47.6]} 18. Bg3 {[%clk 0:01:58]}
18... Nh5 {[%clk 0:01:43.4]} 19. Rad1 {[%clk 0:01:50.5]} 19... Nhf4 {[%clk
0:01:37.9]} 20. Qc2 {[%clk 0:01:47.4]} 20... h5 {[%clk 0:01:19]} 21. Ne2 {[%clk
0:01:40.7]} 21... Nxe2+ {[%clk 0:01:16.6]} 22. Bxe2 {[%clk 0:01:38.1]} 22... h4
{[%clk 0:01:14]} 23. Bf2 {[%clk 0:01:38]} 23... Qg5 {[%clk 0:01:08.1]} 24. Kh1
{[%clk 0:01:23.1]} 24... Nf4 {[%clk 0:00:59]} 25. Rg1 {[%clk 0:01:23]} 25... Nh5
{[%clk 0:00:51.1]} 26. Rxd6 {[%clk 0:01:05.7]} 26... Ng3+ {[%clk 0:00:48.8]} 27.
Bxg3 {[%clk 0:01:05.3]} 27... hxg3 {[%clk 0:00:49.7]} 28. h3 {[%clk 0:01:01.5]}
28... Rae8 {[%clk 0:00:38.7]} 29. c5 {[%clk 0:00:57.2]} 29... Kh8 {[%clk
0:00:31.9]} 30. Bc4 {[%clk 0:00:54.8]} 30... Bc8 {[%clk 0:00:29.3]} 31. Rxc6
{[%clk 0:00:47]} 31... f4 {[%clk 0:00:29.2]} 32. Rd1 {[%clk 0:00:39.2]} 32...
Qh5 {[%clk 0:00:24.4]} 33. Rxc8 {[%clk 0:00:34.9]} 33... Rxc8 {[%clk 0:00:25.3]}
34. Be6 {[%clk 0:00:34.7]} 34... Rcd8 {[%clk 0:00:20.8]} 35. c6 {[%clk 0:00:32]}
35... Qg6 {[%clk 0:00:17]} 36. Bd7 {[%clk 0:00:29.7]} 36... Qxc2 {[%clk
0:00:16.2]} 37. Rc1 {[%clk 0:00:25.6]} 37... Qxb2 {[%clk 0:00:15.6]} 38. Bg4
{[%clk 0:00:19]} 38... Qxc1+ {[%clk 0:00:14.6]} 0-1

[Event "*** Titled Tuesday Blitz"]
[Site "Chess.com"]
[Date "2021.02.16"]
[Round "10"]
[White "night_player"]
[Black "Kurkusha"]
[Result "0-1"]
[WhiteElo "2186"]
[BlackElo "2357"]
[TimeControl "180+1"]
[EndTime "11:59:22 PST"]
[Termination "Kurkusha won by resignation"]

1. e4 {[%clk 0:02:40.7]} 1... e5 {[%clk 0:02:59]} 2. Nf3 {[%clk 0:02:40.5]} 2...
Nc6 {[%clk 0:02:58.9]} 3. Bb5 {[%clk 0:02:38.3]} 3... Nf6 {[%clk 0:02:58.5]} 4.
O-O {[%clk 0:02:37.6]} 4... Nxe4 {[%clk 0:02:58.7]} 5. Re1 {[%clk 0:02:36.8]}
5... Nd6 {[%clk 0:02:58.9]} 6. Nxe5 {[%clk 0:02:35.8]} 6... Be7 {[%clk
0:02:58.8]} 7. Nxc6 {[%clk 0:02:35]} 7... dxc6 {[%clk 0:02:58]} 8. Bf1 {[%clk
0:02:35.5]} 8... O-O {[%clk 0:02:58]} 9. d4 {[%clk 0:02:35.1]} 9... Nf5 {[%clk
0:02:56.5]} 10. c3 {[%clk 0:02:34.6]} 10... Bd6 {[%clk 0:02:56.9]} 11. g3 {[%clk
0:02:31.7]} 11... Qf6 {[%clk 0:02:50]} 12. Nd2 {[%clk 0:02:28.9]} 12... Qg6
{[%clk 0:02:40.6]} 13. Ne4 {[%clk 0:02:24.7]} 13... Be6 {[%clk 0:02:34.1]} 14.
Nxd6 {[%clk 0:02:23.4]} 14... cxd6 {[%clk 0:02:35]} 15. Bg2 {[%clk 0:02:19.5]}
15... h5 {[%clk 0:02:32.8]} 16. Qd2 {[%clk 0:02:11.6]} 16... Rfe8 {[%clk
0:02:20.7]} 17. Qg5 {[%clk 0:02:06.3]} 17... Qxg5 {[%clk 0:02:19.8]} 18. Bxg5
{[%clk 0:02:07.1]} 18... f6 {[%clk 0:02:20.1]} 19. Bd2 {[%clk 0:02:03.8]} 19...
Kf7 {[%clk 0:02:20]} 20. b3 {[%clk 0:01:59.2]} 20... a5 {[%clk 0:02:14.4]} 21.
Rab1 {[%clk 0:01:21.1]} 21... a4 {[%clk 0:02:11.1]} 22. bxa4 {[%clk 0:01:20.6]}
22... Re7 {[%clk 0:02:07.6]} 23. Rb4 {[%clk 0:01:16.1]} 23... Ra7 {[%clk
0:01:53.6]} 24. a3 {[%clk 0:01:11.2]} 24... c5 {[%clk 0:01:46.4]} 25. dxc5
{[%clk 0:01:03.7]} 25... dxc5 {[%clk 0:01:47.3]} 26. Rb2 {[%clk 0:01:01.9]}
26... Rxa4 {[%clk 0:01:45.7]} 27. Bxb7 {[%clk 0:00:50]} 27... Rxa3 {[%clk
0:01:44.2]} 28. Bf3 {[%clk 0:00:46.5]} 28... g6 {[%clk 0:01:38.5]} 29. Rb6
{[%clk 0:00:41.4]} 29... Bc4 {[%clk 0:01:27.7]} 30. Rxe7+ {[%clk 0:00:36]} 30...
Nxe7 {[%clk 0:01:28.3]} 31. Kg2 {[%clk 0:00:27.6]} 31... Ra1 {[%clk 0:01:22.2]}
32. Bb7 {[%clk 0:00:23.4]} 32... Bd5+ {[%clk 0:00:26.4]} 33. Bxd5+ {[%clk
0:00:22.7]} 33... Nxd5 {[%clk 0:00:27.3]} 34. Rd6 {[%clk 0:00:19]} 34... Ne7
{[%clk 0:00:27.7]} 35. Rc6 {[%clk 0:00:17.5]} 35... Nxc6 {[%clk 0:00:22]} 36.
Be3 {[%clk 0:00:17.2]} 36... c4 {[%clk 0:00:21.9]} 37. Kf3 {[%clk 0:00:15.7]}
37... Ne5+ {[%clk 0:00:22]} 38. Ke4 {[%clk 0:00:15.9]} 38... Rd1 {[%clk
0:00:21.1]} 39. Bd4 {[%clk 0:00:13.7]} 39... Ng4 {[%clk 0:00:19.7]} 40. h3
{[%clk 0:00:12.8]} 40... Nh6 {[%clk 0:00:16.2]} 41. Kd5 {[%clk 0:00:12.8]} 41...
Nf5 {[%clk 0:00:16.5]} 42. Kxc4 {[%clk 0:00:11.3]} 42... Nxd4 {[%clk 0:00:16.6]}
43. cxd4 {[%clk 0:00:12.2]} 43... Ke6 {[%clk 0:00:17.1]} 44. d5+ {[%clk
0:00:11.7]} 44... Rxd5 {[%clk 0:00:16.2]} 0-1

[Event "*** Titled Tuesday Blitz"]
[Site "Chess.com"]
[Date "2021.02.16"]
[Round "10"]
[White "igorcadilhac"]
[Black "StockholmMissile"]
[Result "1-0"]
[WhiteElo "2379"]
[BlackElo "2519"]
[TimeControl "180+1"]
[EndTime "11:59:23 PST"]
[Termination "igorcadilhac won by checkmate"]

1. e4 {[%clk 0:03:00.9]} 1... e5 {[%clk 0:02:59.6]} 2. Nf3 {[%clk 0:03:01.1]}
2... Nc6 {[%clk 0:03:00.1]} 3. Bb5 {[%clk 0:03:01.7]} 3... a6 {[%clk 0:03:00.3]}
4. Ba4 {[%clk 0:03:02.3]} 4... Nf6 {[%clk 0:03:00.4]} 5. d3 {[%clk 0:03:02.7]}
5... b5 {[%clk 0:02:59.9]} 6. Bb3 {[%clk 0:03:03.3]} 6... Bc5 {[%clk 0:03:00.4]}
7. O-O {[%clk 0:03:02.7]} 7... d6 {[%clk 0:03:00.5]} 8. c3 {[%clk 0:03:03.1]}
8... O-O {[%clk 0:02:59.1]} 9. a4 {[%clk 0:03:03.3]} 9... Bg4 {[%clk 0:02:55.1]}
10. h3 {[%clk 0:02:58.7]} 10... Bh5 {[%clk 0:02:54.2]} 11. Bg5 {[%clk
0:02:58.8]} 11... Rb8 {[%clk 0:02:52.6]} 12. axb5 {[%clk 0:02:56.3]} 12... axb5
{[%clk 0:02:52.2]} 13. Nbd2 {[%clk 0:02:56.1]} 13... h6 {[%clk 0:02:51.5]} 14.
Bh4 {[%clk 0:02:56]} 14... g5 {[%clk 0:02:49.6]} 15. Bg3 {[%clk 0:02:55.7]}
15... Bb6 {[%clk 0:02:48]} 16. Ra6 {[%clk 0:02:23.1]} 16... Ne7 {[%clk
0:02:43.7]} 17. Qc2 {[%clk 0:02:18.8]} 17... Ng6 {[%clk 0:02:41.1]} 18. d4
{[%clk 0:02:18.9]} 18... Re8 {[%clk 0:02:40.2]} 19. Rd1 {[%clk 0:01:56.4]} 19...
Qc8 {[%clk 0:02:35.8]} 20. Raa1 {[%clk 0:01:51.2]} 20... Nf4 {[%clk 0:02:35.1]}
21. Bxf4 {[%clk 0:01:47.1]} 21... gxf4 {[%clk 0:02:33.5]} 22. Qd3 {[%clk
0:01:39.6]} 22... Kh8 {[%clk 0:02:28.3]} 23. dxe5 {[%clk 0:01:17.4]} 23... dxe5
{[%clk 0:02:26.7]} 24. Qe2 {[%clk 0:01:07.8]} 24... Rg8 {[%clk 0:02:22.6]} 25.
Kh2 {[%clk 0:01:04.1]} 25... Rg7 {[%clk 0:02:00.2]} 26. Qxb5 {[%clk 0:00:52.7]}
26... Bxf3 {[%clk 0:01:48.9]} 27. Nxf3 {[%clk 0:00:50.1]} 27... Bxf2 {[%clk
0:01:48.9]} 28. Qxe5 {[%clk 0:00:48.2]} 28... Bg3+ {[%clk 0:01:38.3]} 29. Kh1
{[%clk 0:00:46.9]} 29... Nh7 {[%clk 0:01:24.2]} 30. Bxf7 {[%clk 0:00:35.5]}
30... Rxb2 {[%clk 0:01:03.7]} 31. Be6 {[%clk 0:00:35.9]} 31... Qf8 {[%clk
0:00:50]} 32. Rd7 {[%clk 0:00:35.7]} 32... Rb8 {[%clk 0:00:33.3]} 33. Rad1
{[%clk 0:00:34.7]} 33... Nf6 {[%clk 0:00:28.9]} 34. Rxc7 {[%clk 0:00:33.4]}
34... Rxc7 {[%clk 0:00:26.2]} 35. Qxc7 {[%clk 0:00:33.6]} 35... Nxe4 {[%clk
0:00:22.7]} 36. Ne5 {[%clk 0:00:25.4]} 36... Nf2+ {[%clk 0:00:17.3]} 37. Kg1
{[%clk 0:00:25.4]} 37... Nxh3+ {[%clk 0:00:05.9]} 38. gxh3 {[%clk 0:00:23.2]}
38... Bf2+ {[%clk 0:00:05.6]} 39. Kxf2 {[%clk 0:00:22.7]} 39... Rb2+ {[%clk
0:00:05.3]} 40. Kf1 {[%clk 0:00:22.5]} 40... Qg7 {[%clk 0:00:02.5]} 41. Rd8+
{[%clk 0:00:19.3]} 41... Kh7 {[%clk 0:00:02.5]} 42. Bf5# {[%clk 0:00:19.6]} 1-0